Workbook

Sheet Summary
B2: Summary
B3: Discipline | C3: Value
B4: Electrical | C4: =Electrical!I58 -> R4,124,000.00
B5: Instrumentation | C5: =Instrumentation!I41 -> R1,369,000.00
B6: Mechanical | C6: =Mechanical!I124 -> R14,534,059.15
B7: Tank Stairs | C7: ='Tank Stairs'!I11 -> R1,163,000.00
B8: Tanks | C8: =Tanks!I20 -> R36,386,000.00
B9: TOTAL (ROUNDED) | C9: =SUM(C4:C8) -> R57,576,059.15
B11: Civils + Tank Bases ( Immovable) | C11: ='Tank Bases'!I13+Civils!I26 -> R8,490,000.00

Sheet Tank Stairs
B2: Description | C2: Size | D2: Unit | E2: Qty | F2: Rate | G2: Value | H2: Depreciation | I2: Value
B3: Inter-tank Bridge 40mm thick, 30 degree slope, “vastrap” hot dipped galv. | C3: 24 | D3: m² | E3: 1 | F3: R3,750.00 | G3: R89,250.00 | H3: 50.00% | I3: R45,000.00
B4: Tank Access Stair T1533helical “vastrap” stair incl. | E4: 1 | F4: R168,000.00 | G4: R168,000.00 | H4: 50.00% | I4: R84,000.00
B5: handrail 4 x 1.5'' NB pipe (Galv.)
B6: Tank Access Stair T1435helical “vastrap” stair incl. handrail hot dipped galv. | E6: 1 | F6: R168,000.00 | G6: R168,000.00 | H6: 50.00% | I6: R84,000.00
B7: Tank Access Stair | E7: 1 | F7: R1,900,000.00 | G7: =F7*E7 -> R1,900,000.00 | H7: 50.00% | I7: =G7*H7 -> R950,000.00
B8: T1436&T1437- helical “vastrap” stair incl. handrail hot dipped galv.
B9: TOTAL
H11: Total | I11: =SUM(I3:I8) -> R1,163,000.00

Sheet Tanks
B2: Tanks
B3: Description | C3: Size | D3: Unit | E3: Qty | F3: Rate | G3: Value | H3: Depreciation | I3: Value
B4: Tank, Condensate Return | D4: m3 | E4: 1 | F4: R100,000.00 | G4: R100,000.00 | H4: 60.00% | I4: R40,000.00
B5: Tank, Condensate return, max cap 2000l | C5: 2 | D5: m3 | E5: 1 | F5: R100,000.00 | G5: R100,000.00 | H5: 60.00% | I5: R40,000.00
B6: Tank, slops, horizontal D2.4xL5,5m | C6: 25 | D6: m3 | E6: 1 | F6: R8,000.00 | G6: R200,000.00 | H6: 60.00% | I6: R80,000.00
B7: Tank, power paraffin, horizontal, | C7: 1 | D7: m3 | E7: 1 | F7: R15,000.00 | G7: R15,000.00 | H7: 60.00% | I7: R6,000.00
B8: BTF
B9: Tank, foam compound, 1000l | C9: 1 | D9: m3 | E9: 5 | F9: R13,500.00 | G9: R67,500.00 | H9: 60.00% | I9: R27,000.00
B10: Tank, Boiler fuel, 25mm outlet | D10: m3 | E10: 1 | F10: R5,000.00 | G10: R5,000.00 | H10: 60.00% | I10: R2,000.00
B11: Underground Tank, max cap. 4200l | C11: 4 | D11: m3 | E11: 1 | F11: R50,000.00 | G11: R50,000.00 | H11: 60.00% | I11: R20,000.00
B12: Tank 1533, Vertical, diam 20.4 height 12m, storing MGO | C12: 4,963.00 | D12: m3 | E12: 1 | F12: R12,000,000.00 | G12: R12,000,000.00 | H12: 60.00% | I12: R4,800,000.00
B13: Tank 1435, Vertical, diam 24.5 height 12m, storing LMFO | C13: 11,041.00 | D13: m3 | E13: 1 | F13: R16,000,000.00 | G13: R16,000,000.00 | H13: 60.00% | I13: R6,400,000.00
B14: Tank 1436 & 1437, Vertical, diam 33.4 height 12m, storing | C14: 16,890.00 | D14: m3 | E14: 2 | F14: R30,000,000.00 | G14: R60,000,000.00 | H14: 60.00% | I14: R24,000,000.00
B15: LMFO
B16: Tank 1532 & 1434, Vertical, diam 5.7 height 6m, storing ADO | C16: 155 | D16: m3 | E16: 2 | F16: R1,200,000.00 | G16: R2,400,000.00 | H16: 60.00% | I16: R960,000.00
B17: Horizontal, dia. 2.7m, decommissioned | C17: 72 | D17: m3 | E17: 2 | F17: R50,000.00 | G17: R100,000.00 | H17: 89.00% | I17: R11,000.00
H20: Total | I20: =SUM(I4:I17) -> R36,386,000.00

Sheet Tank Bases
B2: Tank Bases
B3: Description | C3: Size | D3: Unit | E3: Qty | F3: Rate | G3: Value | H3: Depreciation | I3: Value
B4: Tank 1533 plinth | E4: 1 | F4: R500,000.00 | G4: R500,000.00 | H4: 50.00% | I4: R250,000.00
B5: Tank 1435 plinth | E5: 1 | F5: R600,000.00 | G5: R600,000.00 | H5: 50.00% | I5: R300,000.00
B6: Tank 1436 plinth | E6: 1 | F6: R810,000.00 | G6: R810,000.00 | H6: 50.00% | I6: R405,000.00
B7: Tank 1437 plinth | E7: 1 | F7: R810,000.00 | G7: R810,000.00 | H7: 50.00% | I7: R405,000.00
B8: Tank 1532 plinth | E8: 1 | F8: R140,000.00 | G8: R140,000.00 | H8: 50.00% | I8: R70,000.00
B9: Tank 1434 plinth | E9: 1 | F9: R140,000.00 | G9: R140,000.00 | H9: 50.00% | I9: R70,000.00
B10: Horizontal Tank plinths | C10: 4 | D10: m3 | E10: 2 | F10: R300,000.00 | G10: R600,000.00 | H10: 50.00% | I10: R300,000.00
H13: Total | I13: =SUM(I4:I10) -> R1,800,000.00

Sheet Mechanical
B2: Mechanical
B3: Description | C3: Size | D3: Unit | E3: Qty | F3: Rate | G3: Value | H3: Depreciation | I3: Value
B4: Valve, ball, 300mm, V3 | C4: 300 | D4: mm | E4: 1 | F4: R310,000.00 | G4: R310,000.00 | H4: 60.00% | I4: R124,000.00
B5: Pump, Condensate Return | D5: no. | E5: 1 | F5: R25,000.00 | G5: R25,000.00 | H5: 60.00% | I5: R10,000.00
B6: Valve, ball, 500mm, V2 | C6: 500 | D6: mm | E6: 1 | F6: R450,000.00 | G6: R450,000.00 | H6: 60.00% | I6: R180,000.00
B7: Valve, butterfly, 300mm, V5 | C7: 300 | D7: mm | E7: 1 | F7: R43,000.00 | G7: R43,000.00 | H7: 60.00% | I7: R18,000.00
B8: Valve, butterfly, 300mm, V4 | C8: 300 | D8: mm | E8: 1 | F8: R43,000.00 | G8: R43,000.00 | H8: 60.00% | I8: R18,000.00
B9: Valve, gate, 350mm | C9: 350 | D9: mm | E9: 1 | F9: R58,000.00 | G9: R58,000.00 | H9: 60.00% | I9: R24,000.00
B10: Compensator, 300mm | C10: 300 | D10: mm | E10: 1 | F10: R50,000.00 | G10: R50,000.00 | H10: 60.00% | I10: R20,000.00
B11: Valve, gate, 200mm, V22 | C11: 200 | D11: mm | E11: 1 | F11: R29,000.00 | G11: R29,000.00 | H11: 60.00% | I11: R12,000.00
B12: Pump Positive Displacement | D12: no. | E12: 1 | F12: R20,000.00 | G12: R20,000.00 | H12: 60.00% | I12: R8,000.00
B13: Pump Positive Displacement | D13: no. | E13: 1 | F13: R20,000.00 | G13: R20,000.00 | H13: 60.00% | I13: R8,000.00
B14: Pump, centrifugal, ADO, 120m3/hr, 5.25m | D14: no. | E14: 1 | F14: R120,000.00 | G14: R120,000.00 | H14: 60.00% | I14: R48,000.00
B15: Pump, centrifugal, ADO, horizontal split, P6 | D15: no. | E15: 1 | F15: R200,000.00 | G15: R200,000.00 | H15: 60.00% | I15: R80,000.00
B16: 4'' Basket Strainer | C16: 4 | D16: inch | E16: 1 | F16: R112,000.00 | G16: R112,000.00 | H16: 60.00% | I16: R45,000.00
B17: 4'' Steam Trap | C17: 4 | D17: inch | E17: 1 | F17: R105,000.00 | G17: R105,000.00 | H17: 60.00% | I17: R42,000.00
B18: Valve, butterfly, 100mm | C18: 100 | D18: mm | E18: 1 | F18: R13,000.00 | G18: R13,000.00 | H18: 60.00% | I18: R6,000.00
B19: 4'' Basket Strainer | C19: 4 | D19: inch | E19: 1 | F19: R112,000.00 | G19: R112,000.00 | H19: 60.00% | I19: R45,000.00
B20: 4'' Steam Trap | C20: 4 | D20: inch | E20: 1 | F20: R105,000.00 | G20: R105,000.00 | H20: 60.00% | I20: R42,000.00
B21: Pump, centrifugal, split horizontal, MGO, P4 | D21: no. | E21: 1 | F21: R200,000.00 | G21: R200,000.00 | H21: 60.00% | I21: R80,000.00
B22: 4'' Basket Strainer | C22: 4 | D22: inch | E22: 1 | F22: R112,000.00 | G22: R112,000.00 | H22: 60.00% | I22: R45,000.00
B23: 4'' Steam Trap | C23: 4 | D23: inch | E23: 1 | F23: R105,000.00 | G23: R105,000.00 | H23: 60.00% | I23: R42,000.00
B24: Air Eliminator, 1000kPa, max cap 6.3m3 | D24: no. | E24: 1 | F24: R400,000.00 | G24: R400,000.00 | H24: 60.00% | I24: R160,000.00
B25: Valve, gate, 150mm, V27 | C25: 150 | D25: mm | E25: 1 | F25: R14,000.00 | G25: R14,000.00 | H25: 60.00% | I25: R6,000.00
B26: Pump, screw, HFO, size W225 x 135, P1 | D26: no. | E26: 1 | F26: R845,000.00 | G26: =E26*F26 -> R845,000.00 | H26: 60.00% | I26: =G26*(1-H26) -> R338,000.00
B27: Air eliminator, 1000kPa, max cap 6.3m3 | D27: no. | E27: 1 | F27: R400,000.00 | G27: R400,000.00 | H27: 60.00% | I27: R160,000.00
B28: Pump, HFO, size W225 x 135, P2 | D28: no. | E28: 1 | F28: R260,000.00 | G28: R260,000.00 | H28: 60.00% | I28: R104,000.00
B29: Pump, screw, HFO, size W225 x 135, P3 | D29: no. | E29: 1 | F29: R845,000.00 | G29: =E29*F29 -> R845,000.00 | H29: 60.00% | I29: =G29*(1-H29) -> R338,000.00
B30: Piping, insulated carbon steel, | D30: m | E30: 83 | F30: R2,555.00 | G30: R212,065.00 | H30: 60.00% | I30: R85,000.00
B31: 400mm diam
B32: Piping, insulated carbon steel, | D32: m | E32: 180 | F32: R1,916.00 | G32: R344,880.00 | H32: 60.00% | I32: R138,000.00
B33: 300mm diam
B34: Piping, insulated carbon steel, | D34: m | E34: 396 | F34: R380.00 | G34: R150,480.00 | H34: 60.00% | I34: R61,000.00
B35: 50mm diam
B36: Piping, insulated carbon steel, | D36: m | E36: 63 | F36: R511.00 | G36: R32,193.00 | H36: 60.00% | I36: R13,000.00
B37: 80mm diam
B38: Piping, carbon steel, 100mm diam | D38: m | E38: 3 | F38: R7,500.00 | G38: R22,500.00 | H38: 60.00% | I38: R9,000.00
B39: Piping, insulated carbon steel, | D39: m | E39: 74 | F39: R640.00 | G39: R47,360.00 | H39: 60.00% | I39: R19,000.00
B40: 100mm diam
B41: Piping, insulated carbon steel, 65mm diam | D41: m | E41: 51 | F41: R415.00 | G41: R21,165.00 | H41: 60.00% | I41: R9,000.00
B42: Piping, insulated carbon steel, | D42: m | E42: 10 | F42: R958.00 | G42: R9,580.00 | H42: 60.00% | I42: R4,000.00
B43: 150mm diam
B44: Piping, insulated carbon steel, 250mm diam | D44: m | E44: 45 | F44: R1,600.00 | G44: R72,000.00 | H44: 60.00% | I44: R29,000.00
B45: Piping, insulated carbon steel, | D45: m | E45: 22 | F45: R640.00 | G45: R14,080.00 | H45: 60.00% | I45: R6,000.00
B46: 100mm diam
B47: Piping, insulated carbon steel, 50mm diam | D47: m | E47: 6 | F47: R380.00 | G47: R2,280.00 | H47: 60.00% | I47: R1,000.00
B48: Piping, stainless steel, 65mm diam | D48: m | E48: 92 | F48: R4,500.00 | G48: R414,000.00 | H48: 60.00% | I48: R166,000.00
B49: Compensator | D49: no. | E49: 18 | F49: R50,000.00 | G49: R900,000.00 | H49: 60.00% | I49: R360,000.00
B50: Valve, gate, 200mm | C50: 200 | D50: mm | E50: 1 | F50: R29,000.00 | G50: R29,000.00 | H50: 60.00% | I50: R12,000.00
B51: Valve, gate, 300mm Diam. | C51: 300 | D51: mm | E51: 1 | F51: R55,000.00 | G51: R55,000.00 | H51: 60.00% | I51: R22,000.00
B52: Valve, ball, 300mm | C52: 300 | D52: mm | E52: 1 | F52: R310,000.00 | G52: R310,000.00 | H52: 60.00% | I52: R124,000.00
B53: Valve, butterfly, 200mm | C53: 200 | D53: mm | E53: 1 | F53: R23,000.00 | G53: R23,000.00 | H53: 60.00% | I53: R10,000.00
B54: Valve, butterfly, 160mm | C54: 160 | D54: mm | E54: 1 | F54: R21,000.00 | G54: R21,000.00 | H54: 60.00% | I54: R9,000.00
B55: Valve, ball, 400mm | C55: 400 | D55: mm | E55: 1 | F55: R450,000.00 | G55: R450,000.00 | H55: 60.00% | I55: R180,000.00
B56: Valve, gate, 600mm | C56: 600 | D56: mm | E56: 1 | F56: R160,000.00 | G56: R160,000.00 | H56: 60.00% | I56: R64,000.00
B57: Valve, butterfly, 100mm | C57: 100 | D57: mm | E57: 1 | F57: R13,000.00 | G57: R13,000.00 | H57: 60.00% | I57: R6,000.00
B58: Valve, ball, 500mm | C58: 500 | D58: mm | E58: 1 | F58: R120,000.00 | G58: R120,000.00 | H58: 60.00% | I58: R48,000.00
B59: Valve, butterfly, 100mm | C59: 100 | D59: mm | E59: 1 | F59: R13,000.00 | G59: R13,000.00 | H59: 60.00% | I59: R6,000.00
B60: Valve, butterfly, 100mm | C60: 100 | D60: mm | E60: 1 | F60: R13,000.00 | G60: R13,000.00 | H60: 60.00% | I60: R6,000.00
B61: Valve, gate, Dia. 250mm | C61: 250 | D61: mm | E61: 1 | F61: R37,000.00 | G61: R37,000.00 | H61: 60.00% | I61: R15,000.00
B62: Valve, butterfly, 250mm | C62: 250 | D62: mm | E62: 1 | F62: R32,000.00 | G62: R32,000.00 | H62: 60.00% | I62: R13,000.00
B63: Valve, gate, 250mm | C63: 250 | D63: mm | E63: 1 | F63: R37,000.00 | G63: R37,000.00 | H63: 60.00% | I63: R15,000.00
B64: Valve, ball, 100mm | C64: 100 | D64: mm | E64: 1 | F64: R41,000.00 | G64: R41,000.00 | H64: 60.00% | I64: R17,000.00
B65: Valve, ball, 150mm | C65: 150 | D65: mm | E65: 1 | F65: R78,000.00 | G65: R78,000.00 | H65: 60.00% | I65: R32,000.00
B66: Valve, ball, 200mm | C66: 200 | D66: mm | E66: 3 | F66: R104,000.00 | G66: R312,000.00 | H66: 60.00% | I66: R125,000.00
B67: Valve, ball, 300mm | C67: 300 | D67: mm | E67: 1 | F67: R310,000.00 | G67: R310,000.00 | H67: 60.00% | I67: R124,000.00
B68: Valve, ball, 400mm | C68: 400 | D68: mm | E68: 1 | F68: R450,000.00 | G68: R450,000.00 | H68: 60.00% | I68: R180,000.00
B69: Valve, ball, 500mm | C69: 500 | D69: mm | E69: 1 | F69: R650,000.00 | G69: R650,000.00 | H69: 60.00% | I69: R260,000.00
B70: Valve, ball, 80mm | C70: 80 | D70: mm | E70: 1 | F70: R33,000.00 | G70: R33,000.00 | H70: 60.00% | I70: R14,000.00
B71: Valve, butterfly, 50mm | C71: 50 | D71: mm | E71: 1 | F71: R12,000.00 | G71: R12,000.00 | H71: 60.00% | I71: R5,000.00
B72: Valve, butterfly, 100mm | C72: 100 | D72: mm | E72: 6 | F72: R13,000.00 | G72: R78,000.00 | H72: 60.00% | I72: R32,000.00
B73: Valve, butterfly, 100mm | C73: 100 | D73: mm | E73: 2 | F73: R13,000.00 | G73: R26,000.00 | H73: 60.00% | I73: R11,000.00
B74: Valve, butterfly, 150mm | C74: 150 | D74: mm | E74: 3 | F74: R20,000.00 | G74: R60,000.00 | H74: 60.00% | I74: R24,000.00
B75: Valve, butterfly, 200mm | C75: 200 | D75: mm | E75: 3 | F75: R23,000.00 | G75: R69,000.00 | H75: 60.00% | I75: R28,000.00
B76: Valve, butterfly, 250mm | C76: 250 | D76: mm | E76: 3 | F76: R32,000.00 | G76: R96,000.00 | H76: 60.00% | I76: R39,000.00
B77: Valve, butterfly, 250mm | C77: 250 | D77: mm | E77: 2 | F77: R32,000.00 | G77: R64,000.00 | H77: 60.00% | I77: R26,000.00
B78: Valve, butterfly, 400mm | C78: 400 | D78: mm | E78: 1 | F78: R74,000.00 | G78: R74,000.00 | H78: 60.00% | I78: R30,000.00
B79: Valve, butterfly, 600mm | C79: 600 | D79: mm | E79: 1 | F79: R168,000.00 | G79: R168,000.00 | H79: 60.00% | I79: R68,000.00
B80: Valve, gate, 100mm | C80: 100 | D80: mm | E80: 5 | F80: R9,000.00 | G80: R45,000.00 | H80: 60.00% | I80: R18,000.00
B81: Valve, gate, 150mm | C81: 150 | D81: mm | E81: 1 | F81: R14,000.00 | G81: R14,000.00 | H81: 60.00% | I81: R6,000.00
B82: Valve, gate, 150mm | C82: 150 | D82: mm | E82: 8 | F82: R14,000.00 | G82: R112,000.00 | H82: 60.00% | I82: R45,000.00
B83: Valve, gate, 200mm | C83: 200 | D83: mm | E83: 2 | F83: R29,000.00 | G83: R58,000.00 | H83: 60.00% | I83: R24,000.00
B84: Valve, gate, 220mm | C84: 220 | D84: mm | E84: 3 | F84: R33,000.00 | G84: R99,000.00 | H84: 60.00% | I84: R40,000.00
B85: Valve, gate, 250mm | C85: 250 | D85: mm | E85: 1 | F85: R37,000.00 | G85: R37,000.00 | H85: 60.00% | I85: R15,000.00
B86: Valve, gate, 280mm | C86: 280 | D86: mm | E86: 1 | F86: R41,000.00 | G86: R41,000.00 | H86: 60.00% | I86: R17,000.00
B87: Valve, gate, 300mm | C87: 300 | D87: mm | E87: 2 | F87: R55,000.00 | G87: R110,000.00 | H87: 60.00% | I87: R44,000.00
B88: Valve, gate, 350mm | C88: 350 | D88: mm | E88: 1 | F88: R58,000.00 | G88: R58,000.00 | H88: 60.00% | I88: R24,000.00
B89: Valve, gate, 400mm | C89: 400 | D89: mm | E89: 2 | F89: R72,000.00 | G89: R144,000.00 | H89: 60.00% | I89: R58,000.00
B90: Valve, gate, 500mm | C90: 500 | D90: mm | E90: 1 | F90: R120,000.00 | G90: R120,000.00 | H90: 60.00% | I90: R48,000.00
B91: Engine, Diesel | D91: no. | E91: 1 | F91: R400,000.00 | G91: R400,000.00 | H91: 60.00% | I91: R160,000.00
B92: Pump, centrifugal | D92: no. | E92: 1 | F92: R350,000.00 | G92: R350,000.00 | H92: 60.00% | I92: R140,000.00
B93: New Fire pump | E93: 1 | F93: R6,697,843.50 | G93: =F93*E93 -> R6,697,843.50 | H93: 10.00% | I93: =G93*(1-H93) -> R6,028,059.15
B94: Valve, Control, outlet Dia.150mm | C94: 150 | D94: mm | E94: 1 | F94: R80,000.00 | G94: R80,000.00 | H94: 60.00% | I94: R32,000.00
B95: 4'' Basket Strainer | C95: 4 | D95: inch | E95: 1 | F95: R112,000.00 | G95: R112,000.00 | H95: 60.00% | I95: R45,000.00
B96: Valve, butterfly, Diam 150mm | C96: 150 | D96: mm | E96: 1 | F96: R20,000.00 | G96: R20,000.00 | H96: 60.00% | I96: R8,000.00
B97: Valve, butterfly, Dia.200mm | C97: 200 | D97: mm | E97: 1 | F97: R23,000.00 | G97: R23,000.00 | H97: 60.00% | I97: R10,000.00
B98: Foam stock, 25l drums | C98: 2,375.00 | D98: lt | E98: 95 | F98: R100.00 | G98: R237,500.00 | H98: 60.00% | I98: R95,000.00
B99: Fire extinguishers, dry powder | D99: no. | E99: 21 | F99: R880.00 | G99: R18,480.00 | H99: 60.00% | I99: R8,000.00
B100: Fire hoses, 65mm diam (30m) | C100: 65 | D100: mm | E100: 20 | F100: R37,000.00 | G100: R740,000.00 | H100: 60.00% | I100: R296,000.00
B101: Fire hoses, 45mm diam (30m) | C101: 45 | D101: mm | E101: 2 | F101: R25,000.00 | G101: R50,000.00 | H101: 60.00% | I101: R20,000.00
B102: Foam / water cannon, inlet 150mm | C102: 150 | D102: mm | E102: 1 | F102: R35,000.00 | G102: R35,000.00 | H102: 60.00% | I102: R14,000.00
B103: Foam branch, AF 900, nozzle | C103: 65 | D103: mm | E103: 1 | F103: R18,000.00 | G103: R18,000.00 | H103: 60.00% | I103: R8,000.00
B104: 65mm
B105: Hydrants, 65mm outlet | C105: 65 | D105: mm | E105: 16 | F105: R4,000.00 | G105: R64,000.00 | H105: 60.00% | I105: R26,000.00
B106: Level Control Valve | D106: no. | E106: 1 | F106: R60,000.00 | G106: R60,000.00 | H106: 60.00% | I106: R24,000.00
B107: Boiler Feedwater Treatment Dosing Unit | D107: no. | E107: 1 | F107: R10,000.00 | G107: R10,000.00 | H107: 60.00% | I107: R4,000.00
B108: Valve, pressure reducing, kus 63m3/h, outlet 250mm | C108: 250 | D108: mm | E108: 1 | F108: R60,000.00 | G108: R60,000.00 | H108: 60.00% | I108: R24,000.00
B109: Valve, gate, 90mm | C109: 90 | D109: mm | E109: 1 | F109: R7,500.00 | G109: R7,500.00 | H109: 60.00% | I109: R3,000.00
B110: Ball Valve, 3" | C110: 3 | D110: inch | E110: 1 | F110: R33,000.00 | G110: R33,000.00 | H110: 60.00% | I110: R14,000.00
B111: Pump | D111: no. | E111: 1 | F111: R20,000.00 | G111: R20,000.00 | H111: 60.00% | I111: R8,000.00
B112: Burner Unit, Motor & Blower | D112: no. | E112: 1 | F112: R200,000.00 | G112: R200,000.00 | H112: 60.00% | I112: R80,000.00
B113: Boiler, 2500kg/hr, 1035kPa | D113: no. | E113: 1 | F113: R3,000,000.00 | G113: R3,000,000.00 | H113: 60.00% | I113: R1,200,000.00
B114: 4'' Basket Strainer | C114: 4 | D114: inch | E114: 1 | F114: R112,000.00 | G114: R112,000.00 | H114: 60.00% | I114: R45,000.00
B115: 4'' Steam Trap | C115: 4 | D115: inch | E115: 1 | F115: R105,000.00 | G115: R105,000.00 | H115: 60.00% | I115: R42,000.00
B116: Burner Unit, Motor & Blower | D116: no. | E116: 1 | F116: R200,000.00 | G116: R200,000.00 | H116: 60.00% | I116: R80,000.00
B117: Boiler, 2500kg/hr, 1035kPa | D117: no. | E117: 1 | F117: R3,000,000.00 | G117: R3,000,000.00 | H117: 60.00% | I117: R1,200,000.00
B118: 4'' Basket Strainer | C118: 4 | D118: inch | E118: 1 | F118: R112,000.00 | G118: R112,000.00 | H118: 60.00% | I118: R45,000.00
B119: 4'' Steam Trap | C119: 4 | D119: inch | E119: 1 | F119: R105,000.00 | G119: R105,000.00 | H119: 60.00% | I119: R42,000.00
B120: Curb side Diesel Pump | D120: no. | E120: 1 | F120: R65,000.00 | G120: R65,000.00 | H120: 60.00% | I120: R26,000.00
B121: 2 x Containment Equipment | E121: 2 | F121: R25,000.00 | G121: R50,000.00 | H121: 60.00% | I121: R20,000.00
B122: TOTAL
H124: Total | I124: =SUM(I4:I121) -> R14,534,059.15

Sheet Instrumentation
B2: Instrumentation
B3: Description | C3: Size | D3: Unit | E3: Qty | F3: Rate | G3: Value | H3: Depreciation | I3: Value
B4: Valve, Actuator & Gearbox, V3 | D4: no. | E4: 1 | F4: R73,000.00 | G4: R73,000.00 | H4: 60.00% | I4: R30,000.00
B5: Motor, Condensate Return, 2,2kW | D5: no. | E5: 1 | F5: R15,000.00 | G5: R15,000.00 | H5: 60.00% | I5: R6,000.00
B6: Valve Actuator & Gearbox, V2 | D6: no. | E6: 1 | F6: R106,000.00 | G6: R106,000.00 | H6: 60.00% | I6: R43,000.00
B7: Valve, Actuator & Gearbox, V5 | D7: no. | E7: 1 | F7: R73,000.00 | G7: R73,000.00 | H7: 60.00% | I7: R30,000.00
B8: Valve Actuator & Gearbox, V4 | D8: no. | E8: 1 | F8: R73,000.00 | G8: R73,000.00 | H8: 60.00% | I8: R30,000.00
B9: Valve actuator, V22 | D9: no. | E9: 1 | F9: R90,000.00 | G9: R90,000.00 | H9: 60.00% | I9: R36,000.00
B10: Motor | D10: no. | E10: 1 | F10: R15,000.00 | G10: R15,000.00 | H10: 60.00% | I10: R6,000.00
B11: Motor, 700rpm, 5.5Hp | D11: no. | E11: 1 | F11: R15,000.00 | G11: R15,000.00 | H11: 60.00% | I11: R6,000.00
B12: Motor, 2970rpm, 75kW, P6 | D12: no. | E12: 1 | F12: R15,000.00 | G12: R15,000.00 | H12: 60.00% | I12: R6,000.00
B13: Valve actuator | D13: no. | E13: 1 | F13: R58,000.00 | G13: R58,000.00 | H13: 60.00% | I13: R24,000.00
B14: Motor, 1485rpm, 110kW, Exn, IP65, P4 | D14: no. | E14: 1 | F14: R30,000.00 | G14: R30,000.00 | H14: 60.00% | I14: R12,000.00
B15: Valve Actuator & Gearbox, V27 | D15: no. | E15: 1 | F15: R76,000.00 | G15: R76,000.00 | H15: 60.00% | I15: R31,000.00
B16: Motor, 1480rpm, 90kW, Exn, P1 | D16: no. | E16: 1 | F16: R25,000.00 | G16: R25,000.00 | H16: 60.00% | I16: R10,000.00
B17: Motor, 1485rpm, 90kW, Exn, P2 | D17: no. | E17: 1 | F17: R25,000.00 | G17: R25,000.00 | H17: 60.00% | I17: R10,000.00
B18: Motor, 1480rpm, 90kW, Exn, P3 | D18: no. | E18: 1 | F18: R25,000.00 | G18: R25,000.00 | H18: 60.00% | I18: R10,000.00
B19: Motor, 1480rpm, 90kW, Exn | D19: no. | E19: 1 | F19: R25,000.00 | G19: R25,000.00 | H19: 60.00% | I19: R10,000.00
B20: Main Switchboard (Pump | D20: no. | E20: 1 | F20: R1,200,000.00 | G20: R1,200,000.00 | H20: 60.00% | I20: R480,000.00
B21: starters, circuit breakers etc)
B22: Lighting Transformer | D22: no. | E22: 1 | F22: R200,000.00 | G22: R200,000.00 | H22: 60.00% | I22: R80,000.00
B23: Valve actuator | D23: no. | E23: 1 | F23: R90,000.00 | G23: R90,000.00 | H23: 60.00% | I23: R36,000.00
B24: Valve Actuator & Gearbox | D24: no. | E24: 1 | F24: R107,000.00 | G24: R107,000.00 | H24: 60.00% | I24: R43,000.00
B25: Valve Actuator & Gearbox | D25: no. | E25: 1 | F25: R73,000.00 | G25: R73,000.00 | H25: 60.00% | I25: R30,000.00
B26: Valve, Actuator & Gearbox | D26: no. | E26: 1 | F26: R58,000.00 | G26: R58,000.00 | H26: 60.00% | I26: R24,000.00
B27: Valve Actuator & Gearbox | D27: no. | E27: 1 | F27: R58,000.00 | G27: R58,000.00 | H27: 60.00% | I27: R24,000.00
B28: Valve Actuator & Gearbox | D28: no. | E28: 1 | F28: R100,000.00 | G28: R100,000.00 | H28: 60.00% | I28: R40,000.00
B29: Valve Actuator & Gearbox | D29: no. | E29: 1 | F29: R190,000.00 | G29: R190,000.00 | H29: 60.00% | I29: R76,000.00
B30: Valve Actuator & Gearbox | D30: no. | E30: 1 | F30: R58,000.00 | G30: R58,000.00 | H30: 60.00% | I30: R24,000.00
B31: Valve Actuator & Gearbox | D31: no. | E31: 1 | F31: R106,000.00 | G31: R106,000.00 | H31: 60.00% | I31: R43,000.00
B32: Valve Actuator & Gearbox | D32: no. | E32: 1 | F32: R58,000.00 | G32: R58,000.00 | H32: 60.00% | I32: R24,000.00
B33: Valve Actuator & Gearbox | D33: no. | E33: 1 | F33: R58,000.00 | G33: R58,000.00 | H33: 60.00% | I33: R24,000.00
B34: Valve Actuator & Gearbox | D34: no. | E34: 1 | F34: R91,000.00 | G34: R91,000.00 | H34: 60.00% | I34: R37,000.00
B35: Valve Actuator | D35: no. | E35: 1 | F35: R106,000.00 | G35: R106,000.00 | H35: 60.00% | I35: R43,000.00
B36: Valve, Actuator & Gearbox | D36: no. | E36: 1 | F36: R91,000.00 | G36: R91,000.00 | H36: 60.00% | I36: R37,000.00
B37: Motor & Fan | D37: no. | E37: 1 | F37: R5,000.00 | G37: R5,000.00 | H37: 60.00% | I37: R2,000.00
B38: Motor & Fan | D38: no. | E38: 1 | F38: R5,000.00 | G38: R5,000.00 | H38: 60.00% | I38: R2,000.00
H41: Total | I41: =SUM(I4:I38) -> R1,369,000.00

Sheet Electrical
B2: Electrical
B3: Description | C3: Size | D3: Unit | E3: Qty | F3: Rate | G3: Replacement Cost | H3: Depreciation | I3: Value
B4: Lighting, Tank farm | D4: no. | E4: 19 | F4: R13,000.00 | G4: R247,000.00 | H4: 50.00% | I4: R124,000.00
B5: Level switch, Tank 1434 | D5: no. | E5: 1 | F5: R31,000.00 | G5: R31,000.00 | H5: 60.00% | I5: R13,000.00
B6: Radar Gauge, Tank 1435, Exe | D6: no. | E6: 1 | F6: R250,000.00 | G6: R250,000.00 | H6: 60.00% | I6: R100,000.00
B7: DP Cell, Tank 1435 | D7: no. | E7: 1 | F7: R36,000.00 | G7: R36,000.00 | H7: 60.00% | I7: R15,000.00
B8: Water Bottom/Temperature Sensor, Tank 1435 | D8: no. | E8: 1 | F8: R50,000.00 | G8: R50,000.00 | H8: 60.00% | I8: R20,000.00
B9: Data Acquisition Unit, Tank 1435 | D9: no. | E9: 1 | F9: R110,000.00 | G9: R110,000.00 | H9: 60.00% | I9: R44,000.00
B10: Transmitter, temperature, TR2 | D10: no. | E10: 1 | F10: R35,000.00 | G10: R35,000.00 | H10: 60.00% | I10: R14,000.00
B11: Radar Gauge, Tank 1436, Exe | D11: no. | E11: 1 | F11: R250,000.00 | G11: R250,000.00 | H11: 60.00% | I11: R100,000.00
B12: DP Cell, Tank 1436 | D12: no. | E12: 1 | F12: R36,000.00 | G12: R36,000.00 | H12: 60.00% | I12: R15,000.00
B13: Water Bottom/Temperature Sensor, Tank 1436 | D13: no. | E13: 1 | F13: R35,000.00 | G13: R35,000.00 | H13: 60.00% | I13: R14,000.00
B14: Data Acquisition Unit, Tank 1436 | D14: no. | E14: 1 | F14: R110,000.00 | G14: R110,000.00 | H14: 60.00% | I14: R44,000.00
B15: Transmitter, temperature, T1 | D15: no. | E15: 1 | F15: R35,000.00 | G15: R35,000.00 | H15: 60.00% | I15: R14,000.00
B16: Radar Gauge, Tank 1437, Exe | D16: no. | E16: 1 | F16: R250,000.00 | G16: R250,000.00 | H16: 60.00% | I16: R100,000.00
B17: DP Cell, Tank 1437 | D17: no. | E17: 1 | F17: R36,000.00 | G17: R36,000.00 | H17: 60.00% | I17: R15,000.00
B18: Water Bottom/Temperature Sensor, Tank 1437 | D18: no. | E18: 1 | F18: R35,000.00 | G18: R35,000.00 | H18: 60.00% | I18: R14,000.00
B19: Data Acquisition Unit, Tank 1437 | D19: no. | E19: 1 | F19: R110,000.00 | G19: R110,000.00 | H19: 60.00% | I19: R44,000.00
B20: Level switch, Tank 1532 | D20: no. | E20: 1 | F20: R25,000.00 | G20: R25,000.00 | H20: 60.00% | I20: R10,000.00
B21: Radar Gauge, Tank 1533, Exe | D21: no. | E21: 1 | F21: R250,000.00 | G21: R250,000.00 | H21: 60.00% | I21: R100,000.00
B22: DP Cell, Tank 1533 | D22: no. | E22: 1 | F22: R36,000.00 | G22: R36,000.00 | H22: 60.00% | I22: R15,000.00
B23: Water Bottom/Temperature Sensor, Tank 1533 | D23: no. | E23: 1 | F23: R35,000.00 | G23: R35,000.00 | H23: 60.00% | I23: R14,000.00
B24: Data Acquisition Unit | D24: no. | E24: 1 | F24: R110,000.00 | G24: R110,000.00 | H24: 60.00% | I24: R44,000.00
B25: Motor, 2950rpm, 11kW, IP 55 | D25: no. | E25: 1 | F25: R20,000.00 | G25: R20,000.00 | H25: 60.00% | I25: R8,000.00
B26: Transmitter, pressure, PT7 | D26: no. | E26: 1 | F26: R35,000.00 | G26: R35,000.00 | H26: 60.00% | I26: R14,000.00
B27: Meter, ADO, M6/ Register, electronic, M6 | D27: no. | E27: 1 | F27: R65,000.00 | G27: R65,000.00 | H27: 60.00% | I27: R26,000.00
B28: Meter,6", MGO, M5, 600m3/H Mass Flow Meter | C28: 6 | D28: inch | E28: 1 | F28: R400,000.00 | G28: R400,000.00 | H28: 60.00% | I28: R160,000.00
B29: Switch, HL | D29: no. | E29: 1 | F29: R34,000.00 | G29: R34,000.00 | H29: 60.00% | I29: R14,000.00
B30: Switch, LL | D30: no. | E30: 1 | F30: R34,000.00 | G30: R34,000.00 | H30: 60.00% | I30: R14,000.00
B31: Switch Low | D31: no. | E31: 1 | F31: R34,000.00 | G31: R34,000.00 | H31: 60.00% | I31: R14,000.00
B32: Switch, HL | D32: no. | E32: 1 | F32: R34,000.00 | G32: R34,000.00 | H32: 60.00% | I32: R14,000.00
B33: Switch, LL | D33: no. | E33: 1 | F33: R34,000.00 | G33: R34,000.00 | H33: 60.00% | I33: R14,000.00
B34: Switch Low | D34: no. | E34: 1 | F34: R34,000.00 | G34: R34,000.00 | H34: 60.00% | I34: R14,000.00
B35: Meter, 6", HFO, M1, 500m3/H, Mass Flow Meter | C35: 6 | D35: inch | E35: 1 | F35: R400,000.00 | G35: R400,000.00 | H35: 60.00% | I35: R160,000.00
B36: Meter, 6", HFO, M2, 500m3/H, Mass Flow Meter | C36: 6 | D36: inch | E36: 1 | F36: R400,000.00 | G36: R400,000.00 | H36: 60.00% | I36: R160,000.00
B37: Emergency stop button | D37: no. | E37: 11 | F37: R4,000.00 | G37: R44,000.00 | H37: 60.00% | I37: R18,000.00
B38: Emergency Genset, 27.5kVa, 380V, IP22 | D38: no. | E38: 1 | F38: R200,000.00 | G38: R200,000.00 | H38: 60.00% | I38: R80,000.00
B39: Meter | D39: no. | E39: 1 | F39: R400,000.00 | G39: R400,000.00 | H39: 30.00% | I39: =G39*(1-H39) -> R280,000.00
B40: Meter | D40: no. | E40: 1 | F40: R400,000.00 | G40: R400,000.00 | H40: 30.00% | I40: =G40*(1-H40) -> R280,000.00
B41: Meter | D41: no. | E41: 1 | F41: R400,000.00 | G41: R400,000.00 | H41: 30.00% | I41: R280,000.00
B42: Meter | D42: no. | E42: 1 | F42: R400,000.00 | G42: R400,000.00 | H42: 30.00% | I42: R280,000.00
B43: PLC | D43: no. | E43: 1 | F43: R200,000.00 | G43: R200,000.00 | H43: 60.00% | I43: R80,000.00
B44: Transmitter, pressure | D44: no. | E44: 15 | F44: R35,000.00 | G44: R525,000.00 | H44: 60.00% | I44: R210,000.00
B45: Transmitter, temperature | D45: no. | E45: 15 | F45: R35,000.00 | G45: R525,000.00 | H45: 60.00% | I45: R210,000.00
B46: Fence, electric | D46: m | E46: 780 | F46: R192.82 | G46: R150,399.60 | H46: 70.00% | I46: R46,000.00
B47: Lighting, Security | D47: no. | E47: 20 | F47: R2,000.00 | G47: R40,000.00 | H47: 50.00% | I47: R20,000.00
B48: Alarm, High Level | D48: no. | E48: 1 | F48: R20,000.00 | G48: R20,000.00 | H48: 50.00% | I48: R10,000.00
B49: Alarm, Low Level | D49: no. | E49: 1 | F49: R20,000.00 | G49: R20,000.00 | H49: 50.00% | I49: R10,000.00
B50: Control Panel, Boiler | D50: no. | E50: 1 | F50: R200,000.00 | G50: R200,000.00 | H50: 60.00% | I50: R80,000.00
B51: Control Panel, Boiler | D51: no. | E51: 1 | F51: R200,000.00 | G51: R200,000.00 | H51: 60.00% | I51: R80,000.00
B52: Transformer, 11kV, oil cap. 232l | D52: no. | E52: 2 | F52: R450,000.00 | G52: R900,000.00 | H52: 60.00% | I52: R360,000.00
B53: PC, CPU Screen Keyboard & Mouse/ Printer | D53: no. | E53: 1 | F53: R50,000.00 | G53: R50,000.00 | H53: 70.00% | I53: R15,000.00
B54: RMU | D54: no. | E54: 1 | F54: R500,000.00 | G54: R500,000.00 | H54: 70.00% | I54: R150,000.00
B55: MCC | D55: no. | E55: 1 | F55: R500,000.00 | G55: R500,000.00 | H55: 70.00% | I55: R150,000.00
H58: Total | I58: =SUM(I4:I55) -> R4,124,000.00

Sheet Civils
B2: Civils
B3: Description | C3: Size | D3: Unit | E3: Qty | F3: Rate | G3: Replacement Cost | H3: Depreciation | I3: Value
B4: Bund wall, earth, 358m2 | C4: 179 | D4: m | E4: 1 | F4: R2,340.00 | G4: R418,860.00 | H4: 50.00% | I4: R210,000.00
B5: Bund, brick, 50.4m2 | C5: 458 | D5: m | E5: 1 | F5: R92.40 | G5: R42,336.00 | H5: 50.00% | I5: R22,000.00
B6: Drainage channel, brick, 170m | C6: 170 | D6: m | E6: 1 | F6: R1,293.60 | G6: R219,912.00 | H6: 50.00% | I6: R110,000.00
B7: Pump slab, Concrete, 386m2 | C7: 386 | D7: m² | E7: 1 | F7: R750.00 | G7: R289,500.00 | H7: 50.00% | I7: R145,000.00
B8: Roadway, concrete, 689m2 | C8: 689 | D8: m² | E8: 1 | F8: R1,000.00 | G8: R689,000.00 | H8: 50.00% | I8: R345,000.00
B9: Roadway, paved, 800m2 | C9: 800 | D9: m² | E9: 1 | F9: R720.00 | G9: R576,000.00 | H9: 50.00% | I9: R288,000.00
B10: Hardstanding, paved, 436m2 | C10: 436 | D10: m² | E10: 1 | F10: R720.00 | G10: R313,920.00 | H10: 50.00% | I10: R157,000.00
B11: Hardstanding, concrete, | C11: 83 | D11: m² | E11: 1 | F11: R720.00 | G11: R59,760.00 | H11: 50.00% | I11: R30,000.00
B12: 82.49m2
B13: Stormwater Drainage | C13: 195 | D13: m | E13: 1 | F13: R1,050.00 | G13: R204,750.00 | H13: 70.00% | I13: R62,000.00
B14: Fence, barbed wire | C14: 780 | D14: m | E14: 780 | F14: R650.00 | G14: R507,000.00 | H14: 70.00% | I14: R153,000.00
B15: Fence, wire | C15: 780 | D15: m | E15: 780 | F15: R600.00 | G15: R468,000.00 | H15: 70.00% | I15: R141,000.00
B16: Separator, 3x6x2m deep | C16: 36 | D16: m3 | E16: 2 | F16: R3,500.00 | G16: R252,000.00 | H16: 70.00% | I16: R76,000.00
B17: Bund floor (Earth bund wall with concrete cap- 5m x 285m) | C17: 5,923.00 | D17: m² | E17: 1 | F17: R400.00 | G17: R2,369,200.00 | H17: 50.00% | I17: R1,185,000.00
B18: Miscellaneous Pipe Supports | C18: 12 | D18: m3 | E18: 1 | G18: R200,000.00 | H18: 60.00% | I18: R80,000.00
B19: Bund floor (Earth bund wall with concrete cap- 6m x 354m) | C19: 4,329.00 | D19: m² | E19: 1 | F19: R400.00 | G19: R1,731,600.00 | H19: 50.00% | I19: R866,000.00
B20: Separator | C20: 8 | D20: m² | E20: 1 | F20: R650,000.00 | G20: R650,000.00 | H20: 60.00% | I20: R260,000.00
B21: Treatment Plant | C21: 58 | D21: m² | E21: 1 | F21: R850,000.00 | G21: R850,000.00 | H21: 60.00% | I21: R340,000.00
B22: Fire Water Reservoir | C22: 1,000.00 | D22: m3 | E22: 1 | F22: R1,500.00 | G22: R1,500,000.00 | H22: 50.00% | I22: R750,000.00
B23: Bund interconnection | E23: 1 | F23: R2,100,000.00 | G23: =E23*F23 -> R2,100,000.00 | H23: 30.00% | I23: =G23*(1-H23) -> R1,470,000.00
H26: Total | I26: =SUM(I4:I23) -> R6,690,000.00
